bitfinex/quotes_SOLUSD_20230702
["timestamp","ask_amount","ask_price","bid_price","bid_amount"]
[1688315425402,25.97237861,19.46,19.435,77.796]
[1688315425602,11.03,19.47,19.446,21.752]
[1688315425603,56.04,19.451,19.446,21.752]
[1688315425903,11.03,19.47,19.446,21.752]
[1688315426226,11.03,19.47,19.444,21.753]
[1688315426227,37.18285617,19.47,19.444,21.753]
[1688315426404,11.03,19.47,19.444,21.753]
[1688315426603,67.037,19.47,19.444,21.753]
[1688315426919,11.03,19.46,19.442,21.756]
[1688315427906,75.0,19.459,19.442,21.756]
[1688315428205,55.0,19.459,19.442,21.756]
[1688315428511,94.9613,19.458,19.442,21.756]
[1688315428711,55.0,19.457,19.442,21.756]
[1688315428923,55.0,19.457,19.442,19.256]
[1688315429523,20.0,19.456,19.442,19.256]
[1688315429699,20.0,19.456,19.438,56.023]
[1688315429904,55.0,19.455,19.434,56.033]
[1688315430115,20.0,19.454,19.434,56.033]
[1688315430324,55.0,19.453,19.434,56.033]
[1688315430616,55.0,19.453,19.437,21.761]
[1688315430801,29.67414741,19.452,19.437,21.761]
[1688315431007,11.03,19.45,19.425,56.06]
[1688315431212,75.0,19.449,19.425,56.06]
[1688315431413,84.67414741,19.449,19.43,21.77]
[1688315431813,29.67414741,19.449,19.43,21.77]
[1688315432006,20.0,19.449,19.43,77.817]
[1688315432206,9.67414741,19.454,19.43,77.817]
[1688315432423,20.0,19.453,19.43,77.817]
[1688315432922,9.67414741,19.452,19.43,77.817]
[1688315433123,11.11,19.45,19.43,21.77]
[1688315433306,20.0,19.449,19.43,21.77]
[1688315433507,29.67414741,19.449,19.43,21.77]
[1688315434123,55.0,19.448,19.43,21.77]
[1688315434310,11.11,19.45,19.43,21.77]
[1688315434620,21.751,19.448,19.43,21.77]
[1688315434921,21.751,19.448,19.43,21.769]
[1688315435107,77.781,19.439,19.429,21.771]
[1688315435308,21.759,19.44,19.429,21.771]
[1688315435509,25.49975487,19.451,19.429,21.771]
[1688315435726,84.67414741,19.45,19.429,21.771]
[1688315436415,77.773,19.441,19.429,21.771]
[1688315436924,20.0,19.44,19.429,21.771]
[1688315437309,94.9613,19.458,19.429,124.04]
[1688315437519,77.769,19.442,19.429,21.771]
[1688315437717,133.784,19.442,19.429,21.771]
[1688315437910,20.0,19.441,19.42,11.1]
[1688315438113,21.765,19.435,19.421,56.072]
[1688315438418,21.765,19.435,19.425,21.775]
[1688315438813,21.765,19.435,19.422,21.779]
[1688315439027,55.0,19.434,19.411,30.06381261]
[1688315439325,55.0,19.434,19.4,11.23]
[1688315439326,180.107,19.428,19.4,11.23]
[1688315439532,180.156,19.422,19.408,21.794]
[1688315439715,11.03,19.42,19.396,20.627965]
[1688315439909,180.244,19.413,19.4,21.804]
[1688315440110,180.244,19.413,19.398,21.805]
[1688315440333,165.0756,19.412,19.393,21.81]
[1688315440635,180.301,19.407,19.387,56.17]
[1688315441006,21.803,19.401,19.393,21.811]
[1688315441619,11.11,19.41,19.393,21.811]
[1688315441818,55.0,19.409,19.393,21.811]
[1688315442009,84.67414741,19.409,19.393,21.811]
[1688315442422,21.801,19.402,19.393,21.811]
[1688315444809,77.929,19.402,19.391,21.813]
[1688315445016,55.0,19.401,19.389,21.815]
[1688315445215,21.807,19.398,19.388,21.817]
[1688315445420,20.0,19.397,19.382,56.185]
[1688315445716,21.812,19.393,19.386,21.818]
[1688315446527,20.0,19.397,19.386,21.818]
[1688315446714,21.812,19.396,19.386,21.818]
[1688315446919,55.0,19.395,19.386,21.818]
[1688315447510,21.812,19.396,19.37,11.13]
[1688315447711,21.811,19.394,19.383,21.822]
[1688315448525,55.0,19.393,19.381,21.824]
[1688315448724,21.816,19.39,19.381,21.824]
[1688315448928,55.0,19.389,19.381,21.824]
[1688315449128,21.819,19.387,19.381,21.824]
[1688315449317,21.819,19.387,19.372,56.212]
[1688315449519,21.819,19.387,19.374,21.832]
[1688315449520,75.0,19.386,19.374,21.832]
[1688315449722,21.823,19.383,19.368,56.224]
[1688315449919,55.0,19.382,19.371,21.835]
[1688315450123,21.828,19.379,19.371,21.835]
[1688315450340,55.0,19.378,19.371,21.835]
[1688315450519,21.831,19.376,19.371,21.835]
[1688315450721,76.829,19.378,19.371,21.835]
[1688315452316,21.829,19.378,19.371,21.835]
[1688315453634,76.83,19.377,19.364,158.847]
[1688315453829,76.83,19.377,19.364,56.236]
[1688315454046,20.0,19.376,19.364,56.236]
[1688315454224,21.835,19.373,19.367,21.84]
[1688315454726,56.186,19.38,19.367,21.84]
[1688315454927,11.05,19.39,19.367,21.84]
[1688315454928,21.827,19.379,19.367,21.84]
[1688315456623,21.83,19.377,19.367,21.84]
[1688315457326,56.184,19.383,19.367,124.437]
[1688315457738,21.827,19.38,19.367,124.437]
[1688315457933,96.2604,19.383,19.367,124.437]
[1688315458232,21.825,19.381,19.367,124.437]
[1688315459327,21.828,19.379,19.367,124.437]
[1688315460743,55.0,19.378,19.367,124.437]
[1688315460936,21.83,19.377,19.367,124.437]
[1688315461139,21.83,19.377,19.367,21.84]
[1688315461344,21.828,19.378,19.367,21.84]
[1688315461543,78.025,19.378,19.367,21.84]
[1688315461735,75.0,19.377,19.35,11.13]
[1688315461940,21.838,19.37,19.356,158.913]
[1688315462138,21.838,19.37,19.36,78.097]
[1688315464239,56.203,19.377,19.36,78.097]
[1688315464447,20.0,19.376,19.36,78.097]
[1688315464634,21.834,19.374,19.36,78.097]
[1688315465044,3.0,19.402,19.361,55.0]
[1688315465244,102.523,19.378,19.367,180.659]
[1688315465555,21.823,19.384,19.368,55.0]
[1688315465740,21.821,19.385,19.372,180.612]
[1688315466462,21.821,19.385,19.372,21.834]
[1688315466752,31.49514741,19.385,19.372,21.834]
[1688315467056,21.821,19.385,19.372,21.834]
[1688315471753,55.0,19.384,19.372,21.834]
[1688315471957,21.826,19.381,19.372,21.834]
[1688315473138,25.79433365,19.386,19.372,21.834]
[1688315473339,56.159,19.392,19.377,78.027]
[1688315473543,56.159,19.392,19.373,75.0]
[1688315473544,21.814,19.391,19.383,21.823]
[1688315474053,124.284,19.391,19.377,21.829]
[1688315474363,20.0,19.39,19.372,56.213]
[1688315474653,21.821,19.385,19.374,21.832]
[1688315474868,21.825,19.381,19.374,21.832]
[1688315475758,21.822,19.384,19.374,21.832]
[1688315475951,21.824,19.382,19.374,21.832]
[1688315476155,56.175,19.386,19.374,21.832]
[1688315476353,41.822,19.385,19.374,21.832]
[1688315476750,20.0,19.385,19.374,21.832]
[1688315477256,21.816,19.39,19.374,21.832]
[1688315477464,21.816,19.39,19.37,11.1]
[1688315477465,21.816,19.39,19.379,78.02]
[1688315478045,21.812,19.393,19.38,66.12]
[1688315478250,21.812,19.393,19.383,21.822]
[1688315482148,21.81,19.395,19.383,21.822]
[1688315482347,20.0,19.394,19.383,21.822]
[1688315482546,41.811,19.394,19.383,21.822]
[1688315483259,41.811,19.394,19.37,11.13]
[1688315483450,51.48514741,19.394,19.376,56.201]
[1688315483654,9.67414741,19.393,19.37,11.13]
[1688315483981,180.487,19.387,19.367,56.228]
[1688315484146,78.017,19.381,19.371,21.835]
[1688315484542,21.829,19.378,19.371,21.835]
[1688315484766,56.18,19.384,19.371,21.835]
[1688315485067,21.825,19.381,19.371,21.835]
[1688315485565,21.831,19.376,19.371,21.835]
[1688315485760,21.831,19.376,19.369,21.838]
[1688315486772,21.83,19.377,19.369,21.838]
[1688315487156,55.0,19.376,19.367,21.84]
[1688315487472,78.043,19.374,19.364,21.843]
[1688315487844,21.837,19.371,19.364,21.843]
[1688315488067,55.0,19.37,19.364,21.843]
[1688315488360,21.839,19.369,19.364,21.843]
[1688315488666,55.0,19.368,19.361,21.847]
[1688315488845,21.842,19.366,19.361,21.847]
[1688315489668,21.841,19.368,19.361,21.847]
[1688315489964,114.4008,19.375,19.361,21.847]
[1688315490271,21.836,19.371,19.361,21.847]
[1688315491167,78.054,19.371,19.361,21.847]
[1688315491465,55.0,19.37,19.361,21.847]
[1688315491763,21.839,19.369,19.361,21.847]
[1688315491967,55.0,19.368,19.361,21.847]
[1688315492269,76.84,19.368,19.361,21.847]
[1688315492571,55.0,19.368,19.361,21.847]
[1688315493348,76.841,19.368,19.361,21.847]
[1688315493569,21.837,19.371,19.361,21.847]
[1688315493873,21.834,19.373,19.361,21.847]
[1688315495972,55.0,19.372,19.361,21.847]
[1688315496157,21.836,19.372,19.361,21.847]
[1688315496360,188.8016,19.375,19.361,21.847]
[1688315496564,20.0,19.374,19.361,21.847]
[1688315497270,41.834,19.374,19.361,21.847]
[1688315497868,21.836,19.372,19.361,21.847]
[1688315498066,55.0,19.371,19.361,21.847]
[1688315498785,76.837,19.371,19.361,21.847]
[1688315499075,21.84,19.368,19.361,21.847]
[1688315499465,96.841,19.367,19.361,21.847]
[1688315500473,9.67414741,19.372,19.361,21.847]
[1688315500775,21.835,19.373,19.361,21.847]
[1688315501076,20.0,19.374,19.361,21.847]
[1688315501279,25.31150328,19.382,19.368,180.654]
[1688315501473,20.0,19.381,19.368,180.654]
[1688315501677,201.6122,19.389,19.368,180.654]
[1688315501874,21.823,19.383,19.373,180.609]
[1688315502059,43.648,19.383,19.373,180.609]
[1688315502473,21.825,19.383,19.373,180.609]
[1688315502673,21.816,19.389,19.373,180.609]
[1688315502877,20.0,19.388,19.374,55.0]
[1688315503181,20.0,19.388,19.379,78.02]
[1688315503382,41.817,19.388,19.379,21.827]
[1688315504363,21.825,19.389,19.379,21.827]
[1688315504682,56.144,19.397,19.38,55.0]
[1688315504881,21.81,19.394,19.385,21.82]
[1688315506373,41.809,19.396,19.385,21.82]
[1688315509791,55.0,19.395,19.385,21.82]
[1688315510095,21.813,19.392,19.385,21.82]
[1688315510276,21.813,19.392,19.379,56.192]
[1688315510597,21.813,19.392,19.382,21.823]
[1688315513276,55.0,19.391,19.382,21.823]
[1688315513477,21.817,19.389,19.382,21.823]
[1688315513676,55.0,19.388,19.382,21.823]
[1688315513882,21.819,19.387,19.382,21.823]
[1688315514077,21.817,19.388,19.382,21.823]
[1688315514288,21.815,19.39,19.382,21.823]
[1688315514498,21.815,19.391,19.382,21.823]
[1688315515575,21.818,19.388,19.382,21.823]
[1688315515789,21.82,19.386,19.382,21.823]
[1688315515987,21.816,19.389,19.382,21.823]
[1688315516194,21.814,19.391,19.382,21.823]
[1688315516393,55.0,19.39,19.382,21.823]
[1688315516693,76.815,19.39,19.382,21.823]
[1688315519888,21.814,19.391,19.382,21.823]
[1688315520087,55.0,19.39,19.382,21.823]
[1688315520484,21.814,19.391,19.382,21.823]
[1688315520794,55.0,19.39,19.382,21.823]
[1688315521490,76.815,19.39,19.382,21.823]
[1688315522283,76.815,19.39,19.37,11.13]
[1688315522487,21.819,19.386,19.378,21.828]
[1688315522686,21.823,19.383,19.378,21.828]
[1688315522982,55.0,19.382,19.378,21.828]
[1688315523295,21.821,19.385,19.378,21.828]
[1688315523491,20.0,19.384,19.378,21.828]
[1688315524087,20.0,19.387,19.378,21.828]
[1688315525296,21.818,19.389,19.378,21.828]
[1688315525610,93.1406,19.399,19.38,22.2]
[1688315525792,20.0,19.398,19.385,77.995]
[1688315525988,21.81,19.395,19.385,77.995]
[1688315526188,20.0,19.394,19.385,77.995]
[1688315526898,111.137,19.399,19.385,77.995]
[1688315527202,21.808,19.396,19.385,77.995]
[1688315527584,96.9195,19.399,19.385,77.995]
[1688315527785,96.9195,19.399,19.389,180.455]
[1688315527999,21.805,19.4,19.389,180.455]
[1688315528197,96.9195,19.404,19.389,180.455]
[1688315528502,65.78614741,19.408,19.389,180.455]
[1688315528702,21.801,19.403,19.389,180.455]
[1688315529004,9.67414741,19.402,19.389,180.455]
[1688315529205,21.806,19.399,19.389,77.978]
[1688315530795,55.0,19.398,19.389,77.978]
[1688315530997,65.80214741,19.402,19.389,77.978]
[1688315531300,55.0,19.401,19.389,77.978]
[1688315531683,21.802,19.402,19.389,77.978]
[1688315531883,56.115,19.407,19.389,77.978]
[1688315532122,35.72582658,19.408,19.39,22.01]
[1688315532293,9.67414741,19.408,19.395,180.402]
[1688315532494,21.793,19.41,19.395,180.402]
[1688315534106,77.893,19.41,19.395,180.402]
[1688315534299,77.893,19.41,19.395,77.956]
[1688315534508,55.0,19.409,19.395,77.956]
[1688315534688,21.798,19.405,19.395,77.956]
[1688315535012,21.8,19.403,19.395,180.405]
[1688315535192,41.799,19.404,19.395,180.405]
[1688315535513,20.0,19.404,19.395,180.405]
[1688315535692,21.798,19.405,19.395,180.405]
[1688315535891,56.109,19.409,19.395,180.405]
[1688315535892,21.797,19.407,19.395,180.405]
[1688315537600,55.0,19.406,19.395,180.405]
[1688315537794,21.799,19.405,19.395,77.956]
[1688315538106,75.0,19.404,19.395,77.956]
[1688315538303,21.802,19.402,19.395,77.956]
[1688315538502,55.0,19.401,19.395,77.956]
[1688315539009,76.803,19.401,19.395,21.809]
[1688315540092,9.67414741,19.406,19.394,21.81]
[1688315540406,9.67414741,19.416,19.396,21.808]
[1688315540603,21.79,19.413,19.396,21.808]
[1688315540801,21.779,19.423,19.4,44.2]
[1688315541105,21.776,19.425,19.41,22.01]
[1688315541303,21.776,19.425,19.414,180.227]
[1688315541899,20.0,19.424,19.414,21.787]
[1688315542103,21.78,19.421,19.414,21.787]
[1688315543213,21.778,19.423,19.414,21.787]
[1688315543999,21.778,19.423,19.414,21.788]
[1688315544203,21.778,19.423,19.412,21.79]
[1688315544404,55.0,19.422,19.412,21.79]
[1688315544618,21.782,19.419,19.412,21.79]
[1688315544794,20.0,19.424,19.412,77.889]
[1688315544995,21.78,19.421,19.412,21.79]
[1688315545208,55.0,19.42,19.412,21.79]
[1688315545419,21.784,19.418,19.412,21.79]
[1688315546005,55.0,19.417,19.409,21.793]
[1688315546196,21.787,19.415,19.409,21.793]
[1688315548613,21.787,19.415,19.404,56.122]
[1688315548614,75.0,19.414,19.404,56.122]
[1688315548910,21.791,19.411,19.407,21.796]
[1688315550115,21.791,19.411,19.406,21.796]
[1688315550317,55.0,19.41,19.406,21.796]
[1688315550612,76.793,19.41,19.404,21.799]
[1688315550815,76.793,19.41,19.398,56.137]
[1688315551015,76.793,19.41,19.404,21.798]
[1688315551711,76.793,19.41,19.398,56.137]
[1688315551915,76.793,19.41,19.402,21.8]
[1688315552216,76.793,19.41,19.401,21.802]
[1688315554902,20.0,19.414,19.401,21.802]
[1688315555212,21.789,19.413,19.401,21.802]
[1688315556005,20.0,19.414,19.401,21.802]
[1688315556206,120.19077036,19.416,19.401,21.802]
[1688315556207,41.789,19.415,19.401,21.802]
[1688315556606,21.789,19.414,19.401,21.802]
[1688315557103,76.79,19.413,19.401,21.802]
[1688315557702,21.79,19.413,19.401,21.802]
[1688315559022,55.0,19.412,19.401,21.802]
[1688315559217,21.794,19.409,19.401,21.802]
[1688315559419,21.797,19.406,19.401,21.802]
[1688315561116,155.4,19.439,19.401,77.933]
[1688315561117,21.789,19.415,19.401,77.933]
[1688315561514,21.791,19.411,19.401,77.933]
[1688315562526,21.789,19.415,19.401,77.933]
[1688315562730,55.0,19.414,19.401,77.933]
[1688315563211,21.79,19.413,19.401,77.933]
[1688315563911,21.788,19.414,19.401,77.933]
[1688315564107,21.79,19.413,19.401,77.933]
[1688315566515,21.793,19.41,19.401,77.933]
[1688315566714,76.791,19.412,19.401,77.933]
[1688315567318,21.768,19.433,19.405,3.0]
[1688315567523,21.769,19.431,19.417,180.194]
[1688315567713,11.08,19.45,19.42,11.08]
[1688315567914,25.18375019,19.449,19.429,21.77]
[1688315568130,97.1963,19.459,19.43,11.08]
[1688315568329,103.045801,19.45,19.436,77.79]
[1688315568529,97.1963,19.459,19.436,77.79]
[1688315568718,11.08,19.46,19.436,77.79]
[1688315568921,3.0,19.459,19.436,77.79]
[1688315569112,11.08,19.46,19.436,77.79]
[1688315569318,21.748,19.45,19.436,77.79]
[1688315570237,102.14,19.454,19.436,77.79]
[1688315570425,21.748,19.45,19.436,77.79]
[1688315571218,3.0,19.449,19.427,56.054]
[1688315571422,3.0,19.449,19.431,21.768]
[1688315571423,179.956,19.444,19.431,21.768]
[1688315571830,64.67414741,19.443,19.426,56.058]
[1688315572034,21.761,19.438,19.431,21.768]
[1688315572329,21.767,19.433,19.427,21.773]
[1688315572735,21.767,19.433,19.418,10.83719922]
[1688315573032,21.774,19.427,19.419,21.781]
[1688315573336,64.67414741,19.432,19.419,21.781]
[1688315573545,76.768,19.432,19.419,21.781]
[1688315573720,56.037,19.433,19.419,21.781]
[1688315573920,21.766,19.434,19.419,21.781]
[1688315574228,77.801,19.436,19.419,21.781]
[1688315574644,55.0,19.435,19.419,21.781]
[1688315574833,21.766,19.434,19.419,21.781]
[1688315578536,21.771,19.43,19.419,21.781]
[1688315579531,25.92960821,19.435,19.419,21.781]
[1688315579733,56.037,19.436,19.419,21.781]
[1688315579941,21.767,19.433,19.419,21.781]
[1688315580720,92.09240737,19.436,19.419,21.781]
[1688315580721,21.771,19.43,19.419,21.781]
[1688315581124,21.768,19.433,19.419,21.781]
[1688315583421,21.765,19.435,19.419,21.781]
[1688315583625,21.765,19.435,19.42,86.01]
[1688315583929,21.765,19.435,19.424,180.132]
[1688315584538,55.999,19.447,19.425,55.0]
[1688315584731,21.756,19.443,19.434,21.765]
[1688315585727,21.754,19.445,19.434,21.765]
[1688315587942,21.758,19.441,19.429,56.049]
[1688315588337,21.758,19.441,19.433,21.766]
[1688315588533,55.0,19.44,19.426,56.056]
[1688315588731,21.763,19.436,19.426,56.056]
[1688315588945,21.763,19.436,19.428,21.771]
[1688315589339,55.0,19.435,19.428,21.771]
[1688315589538,21.767,19.433,19.428,21.771]
[1688315590053,21.767,19.433,19.421,56.071]
[1688315590346,21.767,19.433,19.428,21.772]
[1688315591240,119.9724,19.434,19.428,21.772]
[1688315591831,98.2064,19.434,19.428,21.772]
[1688315592231,21.766,19.434,19.428,21.772]
[1688315593538,21.766,19.434,19.426,21.774]
[1688315598265,55.0,19.433,19.421,21.78]
[1688315598555,21.771,19.43,19.415,102.342]
[1688315598754,55.0,19.429,19.42,21.781]
[1688315598937,21.774,19.427,19.42,21.781]
[1688315601654,21.771,19.429,19.42,21.781]
[1688315602732,21.774,19.427,19.42,21.781]
[1688315603143,21.774,19.427,19.413,56.094]
[1688315603342,21.774,19.427,19.41,102.369]
[1688315603343,21.779,19.423,19.415,21.786]
[1688315603534,55.0,19.422,19.415,21.786]
[1688315603944,55.0,19.422,19.412,21.79]
[1688315603945,21.781,19.42,19.412,21.79]
[1688315604154,55.0,19.419,19.412,21.79]
[1688315604357,21.785,19.417,19.412,21.79]
[1688315604854,21.785,19.417,19.409,21.793]
[1688315605043,21.788,19.414,19.408,21.794]
[1688315605247,55.0,19.413,19.408,21.794]
[1688315605448,21.791,19.412,19.407,21.796]
[1688315605854,21.791,19.412,19.405,21.797]
[1688315607461,21.793,19.41,19.405,21.797]
[1688315609351,21.793,19.41,19.403,21.799]
[1688315612377,21.793,19.41,19.392,30.0]
[1688315612378,75.0,19.409,19.392,30.0]
[1688315612661,180.323,19.404,19.392,51.812]
[1688315612857,21.804,19.4,19.392,21.812]
[1688315614061,55.0,19.399,19.386,56.173]
[1688315614250,21.809,19.396,19.389,21.815]
[1688315615065,21.806,19.398,19.389,21.815]
[1688315615247,21.81,19.395,19.389,21.815]
[1688315615742,21.81,19.395,19.387,21.818]
[1688315615943,55.0,19.394,19.385,21.819]
[1688315616167,21.813,19.392,19.385,21.819]
[1688315616663,21.813,19.392,19.384,21.822]
[1688315617047,55.0,19.391,19.37,22.02]
[1688315617253,56.166,19.389,19.38,21.826]
[1688315618155,21.82,19.386,19.38,21.826]
[1688315620556,21.818,19.388,19.38,21.826]
[1688315620952,21.814,19.392,19.38,124.354]
[1688315621267,94.0521,19.399,19.38,124.354]
[1688315621449,21.814,19.391,19.38,21.826]
[1688315622753,25.839984,19.392,19.38,21.826]
[1688315623262,21.814,19.391,19.38,21.826]
[1688315624168,55.0,19.39,19.38,21.826]
[1688315624370,21.818,19.387,19.38,21.826]
[1688315626072,21.818,19.387,19.37,11.1]
[1688315626372,21.818,19.387,19.346,101.08952775]
[1688315626373,77.989,19.387,19.375,78.035]
[1688315626675,55.0,19.386,19.375,78.035]
[1688315626859,21.823,19.383,19.375,78.035]
[1688315627758,21.823,19.383,19.375,21.831]
[1688315628155,21.826,19.38,19.375,21.831]
[1688315628367,21.824,19.382,19.375,21.831]
[1688315628755,122.15765411,19.388,19.375,21.831]
[1688315628956,20.0,19.387,19.375,21.831]
[1688315629364,21.818,19.387,19.375,21.831]
[1688315629568,56.208,19.39,19.376,55.0]
[1688315629774,56.208,19.39,19.38,21.826]
[1688315629775,21.817,19.388,19.38,21.826]
[1688315631773,21.816,19.39,19.38,21.826]
[1688315631966,21.812,19.393,19.381,55.0]
[1688315632165,25.45239154,19.397,19.386,124.315]
[1688315632474,56.13,19.402,19.387,55.0]
[1688315632654,21.807,19.397,19.391,21.813]
[1688315636687,21.805,19.399,19.391,21.813]
[1688315636981,93.5058,19.408,19.392,55.0]
[1688315637188,20.0,19.407,19.396,77.952]
[1688315637364,21.798,19.405,19.396,21.808]
[1688315637682,20.0,19.407,19.396,21.808]
[1688315637683,21.801,19.403,19.396,21.808]
[1688315638884,307.7235,19.407,19.394,21.81]
[1688315638885,21.805,19.399,19.394,21.81]
[1688315639290,21.804,19.4,19.394,21.81]
[1688315640580,21.803,19.401,19.394,21.81]
[1688315640787,21.804,19.4,19.394,21.81]
[1688315642292,21.804,19.4,19.393,21.811]
[1688315642468,55.0,19.399,19.386,56.172]
[1688315642666,21.808,19.396,19.389,21.816]
[1688315642982,20.0,19.395,19.389,21.816]
[1688315643187,21.811,19.394,19.389,21.816]
[1688315643390,21.811,19.394,19.383,158.693]
[1688315643889,21.811,19.394,19.386,21.819]
[1688315645494,55.0,19.393,19.386,21.819]
[1688315645696,21.814,19.391,19.386,21.819]
[1688315646405,21.814,19.391,19.383,21.823]
[1688315646595,55.0,19.39,19.383,21.823]
[1688315646802,21.817,19.388,19.383,21.823]
[1688315646997,55.0,19.387,19.383,21.823]
[1688315647201,76.819,19.387,19.383,21.823]
[1688315647407,77.959,19.395,19.383,21.823]
[1688315647718,96.811,19.394,19.383,21.823]
[1688315649909,199.265,19.394,19.383,21.823]
[1688315651394,96.811,19.394,19.383,21.823]
[1688315651912,41.811,19.394,19.383,21.823]
[1688315652111,43.62,19.395,19.383,21.823]
[1688315652322,21.811,19.395,19.383,21.823]
[1688315652501,21.804,19.401,19.384,75.0]
[1688315652815,21.798,19.406,19.398,21.805]
[1688315653015,93.9855,19.409,19.398,21.805]
[1688315653198,115.7755,19.413,19.405,21.798]
[1688315653397,115.7745,19.413,19.405,21.798]
[1688315653614,115.7745,19.413,19.401,56.129]
[1688315653802,115.7745,19.413,19.404,21.799]
[1688315653803,87.58314741,19.413,19.404,21.799]
[1688315654003,93.9855,19.412,19.404,21.799]
[1688315654313,21.793,19.41,19.404,21.799]
[1688315654703,21.793,19.41,19.402,21.8]
[1688315655113,93.9855,19.412,19.402,21.8]
[1688315655323,56.12,19.413,19.402,21.8]
[1688315655508,82.3025697,19.419,19.402,21.8]
[1688315655509,25.82621825,19.416,19.402,21.8]
[1688315655713,102.265,19.43,19.403,55.0]
[1688315655915,21.779,19.422,19.411,77.892]
[1688315656100,21.776,19.425,19.411,77.892]
[1688315657114,20.0,19.424,19.412,55.0]
[1688315657317,20.0,19.424,19.415,77.874]
[1688315657823,21.771,19.43,19.416,55.0]
[1688315658001,26.37653128,19.435,19.42,77.856]
[1688315658323,21.769,19.431,19.42,77.856]
[1688315658521,21.769,19.431,19.42,180.173]
[1688315659723,21.77,19.431,19.42,180.173]
[1688315660109,21.77,19.431,19.42,21.781]
[1688315660315,31.44414741,19.431,19.42,21.781]
[1688315660510,21.77,19.431,19.42,21.781]
[1688315660817,21.774,19.427,19.418,21.783]
[1688315661117,55.0,19.426,19.416,21.785]
[1688315661423,21.778,19.423,19.416,21.785]
[1688315661614,55.0,19.422,19.416,21.785]
[1688315661815,21.781,19.421,19.412,56.098]
[1688315662011,21.781,19.421,19.415,21.787]